fUSD/lending_fUSD_20240121
["ID","MTS","AMOUNT","RATE_DAILY","PERIOD"]
[312432320,1705871471054,-2706.93,0.00041643,31]
[312432321,1705871471063,-500.0,0.00041643,31]
[312432322,1705871471073,-500.0,0.00041643,31]
[312432323,1705871471082,-500.0,0.00041643,31]
[312432324,1705871471091,-500.0,0.00041643,31]
[312432325,1705871471391,-500.0,0.00041643,31]
[312432326,1705871471423,-500.0,0.00041643,31]
[312432327,1705871471432,-706.21,0.00041643,31]
[312432328,1705871471443,-500.0,0.00041643,31]
[312432329,1705871471453,-753.98,0.00041643,31]
[312432330,1705871471462,-500.0,0.00041643,31]
[312432331,1705871471471,-500.0,0.00041643,31]
[312432332,1705871471481,-500.0,0.00041643,31]
[312432333,1705871471490,-500.0,0.00041643,31]
[312432334,1705871471500,-500.0,0.00041643,31]
[312432335,1705871471509,-500.0,0.00041643,31]
[312432336,1705871471518,-500.0,0.00041643,31]
[312432337,1705871471527,-500.0,0.00041643,31]
[312432338,1705871471537,-500.0,0.00041643,31]
[312432339,1705871471546,-500.0,0.00041643,31]
[312432340,1705871471555,-500.0,0.00041643,31]
[312432341,1705871471565,-500.0,0.00041643,31]
[312432342,1705871471574,-1904.36,0.00041643,31]
[312432343,1705871471585,-500.0,0.00041643,31]
[312432344,1705871471596,-500.0,0.00041643,31]
[312432345,1705871471607,-500.0,0.00041643,31]
[312432346,1705871471617,-3057.49,0.00041643,31]
[312432347,1705871471628,-2361.99,0.00041643,31]
[312432348,1705871471638,-500.0,0.00041643,31]
[312432349,1705871471648,-500.0,0.00041643,31]
[312432350,1705871471658,-500.0,0.00041643,31]
[312432351,1705871471669,-1193.21,0.00041643,31]
[312432352,1705871471679,-500.0,0.00041643,31]
[312432353,1705871471691,-5228.61,0.00041643,31]
[312432354,1705871471700,-501.55,0.00041643,31]
[312432355,1705871471709,-500.0,0.00041643,31]
[312432356,1705871471718,-500.0,0.00041643,31]
[312432357,1705871471727,-673.47,0.00041643,31]
[312432358,1705871471737,-500.0,0.00041643,31]
[312432359,1705871471746,-500.0,0.00041643,31]
[312432360,1705871471756,-500.0,0.00041643,31]
[312432361,1705871471765,-706.05,0.00041643,31]
[312432362,1705871471776,-2736.65,0.00041643,31]
[312432363,1705871471785,-500.0,0.00041643,31]
[312432364,1705871471795,-1933.78,0.00041643,31]
[312432365,1705871471804,-574.77,0.00041643,31]
[312432366,1705871471813,-2095.74,0.00041643,31]
[312432367,1705871471823,-1129.43,0.00041643,31]
[312432368,1705871471833,-1030.15,0.00041643,31]
[312432369,1705871471842,-2123.7,0.00041643,31]
[312432370,1705871471850,-500.0,0.00041643,31]
[312432371,1705871471860,-757.56,0.00041643,31]
[312432372,1705871471869,-500.0,0.00041643,31]
[312432373,1705871471878,-500.0,0.00041643,31]
[312432374,1705871471888,-4409.24,0.00041643,31]
[312432375,1705871471897,-500.0,0.00041643,31]
[312432376,1705871471906,-611.12902735,0.00041643,7]
[312432377,1705871471916,-500.0,0.00041643,31]
[312432378,1705871471925,-500.0,0.00041643,31]
[312432379,1705871471936,-500.0,0.00041643,31]
[312432380,1705871471946,-500.0,0.00041643,31]
[312432381,1705871471956,-684.66,0.00041643,31]
[312432382,1705871471965,-500.0,0.00041643,31]
[312432383,1705871471976,-500.0,0.00041643,31]
[312432384,1705871471985,-1624.83,0.00041643,31]
[312432385,1705871471995,-612.11,0.00041643,31]
[312432386,1705871472005,-2380.48,0.00041643,31]
[312432387,1705871472015,-500.0,0.00041643,31]
[312432388,1705871472025,-500.0,0.00041643,31]
[312432389,1705871472034,-3071.97,0.00041643,31]
[312432390,1705871472044,-2546.42,0.00041643,31]
[312432391,1705871472053,-1285.05,0.00041643,31]
[312432392,1705871472063,-500.0,0.00041643,31]
[312432393,1705871472072,-2297.31,0.00041643,31]
[312432394,1705871472083,-500.0,0.00041643,31]
[312432395,1705871472093,-1012.66,0.00041643,31]
[312432396,1705871472103,-2124.24,0.00041643,31]
[312432397,1705871472113,-500.0,0.00041643,31]
[312432398,1705871472123,-802.71,0.00041643,31]
[312432399,1705871472132,-500.0,0.00041643,31]
[312432400,1705871472142,-500.0,0.00041643,31]
[312432401,1705871472152,-500.0,0.00041643,31]
[312432402,1705871472161,-3796.95,0.00041643,31]
[312432403,1705871472170,-589.46,0.00041643,31]
[312432404,1705871472180,-672.07,0.00041643,31]
[312432405,1705871472190,-500.0,0.00041643,31]
[312432406,1705871472199,-500.0,0.00041643,31]
[312432407,1705871472209,-1018.92,0.00041643,31]
[312432408,1705871472219,-152.12099228,0.00041643,2]
[312432409,1705871472229,-890.78,0.00041643,31]
[312432410,1705871472238,-551.48,0.00041643,31]
[312432411,1705871472248,-500.0,0.00041643,31]
[312432412,1705871472258,-500.0,0.00041643,31]
[312432413,1705871472267,-558.76,0.00041643,31]
[312432414,1705871472277,-507.96,0.00041643,31]
[312432415,1705871472287,-1534.19,0.00041643,31]
[312432416,1705871472295,-2212.81,0.00041643,31]
[312432417,1705871472305,-4831.05,0.00041643,31]
[312432418,1705871472315,-9801.56,0.00041643,31]
[312432419,1705871472324,-12999.6,0.00041643,31]
[312432420,1705871472334,-500.0,0.00041643,31]
[312432421,1705871472345,-500.0,0.00041643,31]
[312432422,1705871472356,-1513.82,0.00041643,31]
[312432423,1705871472366,-997.89,0.00041643,31]
[312432424,1705871472376,-500.0,0.00041643,31]
[312432425,1705871472386,-742.61,0.00041643,31]
[312432426,1705871472396,-500.0,0.00041643,31]
[312432427,1705871472408,-1107.38,0.00041643,31]
[312432428,1705871472418,-500.0,0.00041643,31]
[312432429,1705871472441,-266.35988158,0.00041643,31]
[312432430,1705871472472,-1702.69011842,0.00041643,31]
[312432431,1705871472484,-500.0,0.00041643,31]
[312432432,1705871472495,-500.0,0.00041643,31]
[312432433,1705871472506,-500.0,0.00041643,31]
[312432434,1705871472518,-2273.85,0.00041643,31]
[312432435,1705871472530,-500.0,0.00041643,31]
[312432436,1705871472542,-2701.75,0.00041643,31]
[312432437,1705871472553,-500.0,0.00041643,31]
[312432438,1705871472564,-500.0,0.00041643,31]
[312432439,1705871472575,-500.0,0.00041643,31]
[312432440,1705871472585,-435.02131455,0.00041643,31]
[312432441,1705871472596,-500.0,0.00041643,31]
[312432442,1705871472607,-500.0,0.00041643,2]
[312432443,1705871472618,-562.19,0.00041643,31]
[312432444,1705871472629,-500.0,0.00041643,31]
[312432445,1705871472640,-1914.09,0.00041643,31]
[312432446,1705871472651,-500.0,0.00041643,31]
[312432447,1705871472662,-500.0,0.00041643,31]
[312432448,1705871472672,-500.0,0.00041643,31]
[312432449,1705871472684,-3339.48,0.00041643,31]
[312432450,1705871472695,-759.23,0.00041643,31]
[312432451,1705871472705,-1721.5,0.00041643,31]
[312432452,1705871472716,-500.0,0.00041643,31]
[312432453,1705871472726,-4012.63,0.00041643,31]
[312432454,1705871472737,-500.0,0.00041643,31]
[312432455,1705871472747,-1410.74,0.00041643,31]
[312432456,1705871472758,-500.0,0.00041643,31]
[312432457,1705871472770,-500.0,0.00041643,31]
[312432458,1705871472780,-612.4,0.00041643,31]
[312432459,1705871472791,-6318.58,0.00041643,31]
[312432460,1705871472801,-1598.09,0.00041643,31]
[312432461,1705871472811,-796.67,0.00041643,31]
[312432462,1705871472822,-500.0,0.00041643,31]
[312432463,1705871472833,-1018.04,0.00041643,31]
[312432464,1705871472843,-584.2,0.00041643,31]
[312432465,1705871472853,-571.75,0.00041643,31]
[312432466,1705871472864,-1398.35,0.00041643,31]
[312432467,1705871472874,-959.8,0.00041643,31]
[312432468,1705871472884,-4513.47,0.00041643,31]
[312432469,1705871472894,-500.0,0.00041643,31]
[312432470,1705871472904,-500.0,0.00041643,31]
[312432471,1705871472921,-2490.25,0.00041643,31]
[312432472,1705871472933,-500.0,0.00041643,31]
[312432473,1705871472943,-500.0,0.00041643,31]
[312432474,1705871472954,-590.71,0.00041643,31]
[312432475,1705871472965,-699.35,0.00041643,31]
[312432476,1705871472976,-4695.07,0.00041643,31]
[312432477,1705871472987,-500.0,0.00041643,31]
[312432478,1705871472997,-590.87,0.00041643,31]
[312432479,1705871473008,-662.71,0.00041643,31]
[312432480,1705871473019,-10157.54,0.00041643,31]
[312432481,1705871473031,-1371.42,0.00041643,31]
[312432482,1705871473043,-500.0,0.00041643,31]
[312432483,1705871473053,-500.0,0.00041643,7]
[312432484,1705871473064,-1632.83,0.00041643,31]
[312432485,1705871473075,-546.78,0.00041643,31]
[312432486,1705871473085,-1400.28,0.00041643,31]
[312432487,1705871473096,-1625.71,0.00041643,31]
[312432488,1705871473107,-1048.27,0.00041643,31]
[312432489,1705871473118,-500.0,0.00041643,31]
[312432490,1705871473129,-1146.41,0.00041643,31]
[312432491,1705871473140,-500.0,0.00041643,31]
[312432492,1705871473150,-1132.07,0.00041643,31]
[312432493,1705871473161,-500.0,0.00041643,31]
[312432494,1705871473172,-500.0,0.00041643,31]
[312432495,1705871473183,-2152.6,0.00041643,31]
[312432496,1705871473193,-500.0,0.00041643,31]
[312432497,1705871473204,-1788.55,0.00041643,31]
[312432498,1705871473215,-1000.0,0.00041643,31]
[312432499,1705871473227,-2308.11,0.00041643,31]
[312432500,1705871473237,-533.78,0.00041643,31]
[312432501,1705871473248,-642.57,0.00041643,31]
[312432502,1705871473258,-235.67502705,0.00041643,31]
[312432503,1705871473269,-736.68,0.00041643,31]
[312432504,1705871473280,-1342.58,0.00041643,31]
[312432505,1705871473290,-2080.47,0.00041643,31]
[312432506,1705871473302,-827.35,0.00041643,31]
[312432507,1705871473313,-2881.28,0.00041643,31]
[312432508,1705871473323,-2270.31,0.00041643,31]
[312432509,1705871473334,-1168.81,0.00041643,31]
[312432510,1705871473344,-500.0,0.00041643,31]
[312432511,1705871473355,-500.0,0.00041643,31]
[312432512,1705871473371,-14616.47,0.00041643,31]
[312432513,1705871473383,-578.26,0.00041643,31]
[312432514,1705871473395,-696.16,0.00041643,31]
[312432515,1705871473409,-1284.46,0.00041643,31]
[312432516,1705871473426,-500.0,0.00041643,31]
[312432517,1705871473440,-500.0,0.00041643,31]
[312432518,1705871473451,-500.0,0.00041643,31]
[312432519,1705871473463,-718.33,0.00041643,31]
[312432520,1705871473475,-2759.02,0.00041643,31]
[312432521,1705871473487,-1473.4,0.00041643,31]
[312432522,1705871473498,-500.0,0.00041643,31]
[312432523,1705871473510,-500.0,0.00041643,31]
[312432524,1705871473522,-500.0,0.00041643,31]
[312432525,1705871473533,-21229.04,0.00041643,31]
[312432526,1705871473544,-3161.98,0.00041643,31]
[312432527,1705871473556,-863.04,0.00041643,31]
[312432528,1705871473567,-500.0,0.00041643,31]
[312432529,1705871473579,-1129.42,0.00041643,31]
[312432530,1705871473591,-500.0,0.00041643,31]
[312432531,1705871473602,-500.0,0.00041643,31]
[312432532,1705871473614,-1038.2,0.00041643,31]
[312432533,1705871473625,-500.0,0.00041643,31]
[312432534,1705871473636,-1570.2,0.00041643,31]
[312432535,1705871473646,-500.0,0.00041643,31]
[312432536,1705871473658,-279.52382864,0.00041643,31]
[312432537,1705871473676,-509.82256983,0.00041643,31]
[312432538,1705871473693,-215.28360153,0.00041643,31]
[312432539,1705871473704,-500.0,0.00041643,31]
[312432540,1705871473716,-893.88,0.00041643,31]
[312432541,1705871473727,-500.0,0.00041643,31]
[312432542,1705871473738,-209.27953662,0.00041643,31]
[312432543,1705871473752,-3183.03046338,0.00041643,31]
[312432544,1705871473762,-1099.89,0.00041643,31]
[312432545,1705871473772,-1311.78,0.00041643,31]
[312432546,1705871473782,-500.0,0.00041643,31]
[312432547,1705871473793,-500.0,0.00041643,31]
[312432548,1705871473803,-2723.77,0.00041643,31]
[312432549,1705871473814,-670.88,0.00041643,31]
[312432550,1705871473825,-500.0,0.00041643,31]
[312432551,1705871473835,-500.0,0.00041643,31]
[312432552,1705871473845,-947.36,0.00041643,31]
[312432553,1705871473855,-500.0,0.00041643,31]
[312432554,1705871473866,-5150.28,0.00041643,31]
[312432555,1705871473876,-1015.9,0.00041643,31]
[312432556,1705871473886,-1673.33,0.00041643,31]
[312432557,1705871473902,-500.0,0.00041643,31]
[312432558,1705871473912,-4382.08,0.00041643,31]
[312432559,1705871473922,-500.0,0.00041643,31]
[312432560,1705871473932,-500.0,0.00041643,30]
[312432561,1705871473943,-500.0,0.00041643,31]
[312432562,1705871473954,-1588.34,0.00041643,31]
[312432563,1705871473964,-673.38,0.00041643,31]
[312432564,1705871473974,-500.0,0.00041643,31]
[312432565,1705871473984,-330.50213293,0.00041643,31]
[312432566,1705871473994,-500.0,0.00041643,31]
[312432567,1705871474005,-9277.65,0.00041643,31]
[312432568,1705871474015,-506.94641488,0.00041643,31]
[312432569,1705871474026,-1645.93,0.00041643,31]
[312432570,1705871474037,-500.0,0.00041643,31]
[312432571,1705871474048,-2888.27,0.00041643,31]
[312432572,1705871474058,-650.25,0.00041643,31]
[312432573,1705871474068,-1385.08,0.00041643,31]
[312432574,1705871474078,-2029.89,0.00041643,31]
[312432575,1705871474088,-1849.66,0.00041643,31]
[312432576,1705871474098,-2021.50340158,0.00041643,31]
[312432577,1705871474110,-500.0,0.00041643,31]
[312432578,1705871474302,-500.0,0.00041643,31]
[312432579,1705871474312,-112.33722223,0.00041643,31]
[312432580,1705871474329,-696.23277777,0.00041643,31]
[312432581,1705871474337,-783.04,0.00041643,31]
[312432582,1705871474351,-4482.06,0.00041643,31]
[312432583,1705871474360,-779.61173054,0.00041643,31]
[312432584,1705871474372,-617.00826946,0.00041643,31]
[312432585,1705871474381,-792.04,0.00041643,31]
[312432586,1705871474393,-500.0,0.00041643,31]
[312432587,1705871474403,-1197.93,0.00041643,31]
[312432588,1705871474413,-1055.02,0.00041643,31]
[312432589,1705871474424,-6277.76,0.00041643,31]
[312432590,1705871474434,-417.23929363,0.00041643,31]
[312432591,1705871474445,-87.63454691,0.00041643,31]
[312432592,1705871474455,-799.68,0.00041643,31]
[312432593,1705871474465,-1099.84,0.00041643,31]
[312432594,1705871474476,-500.0,0.00041643,31]
[312432595,1705871474487,-575.17,0.00041643,31]
[312432596,1705871474497,-500.0,0.00041643,31]
[312432597,1705871474506,-579.3,0.00041643,31]
[312432598,1705871474515,-500.0,0.00041643,31]
[312432599,1705871474527,-214.2253194,0.00041643,31]
[312432600,1705871474537,-500.0,0.00041643,2]
[312432601,1705871474547,-3656.93825991,0.00041643,31]
[312432602,1705871474560,-499.10893975,0.00041643,31]
[312432603,1705871474584,-268.72865852,0.00041643,31]
[312432604,1705871474597,-427.03013408,0.00041643,31]
[312432605,1705871474609,-2787.6745648,0.00041643,31]
[312432606,1705871474621,-2025.81944294,0.00041643,31]
[312432607,1705871474631,-500.0,0.00041643,31]
[312432608,1705871474640,-897.32,0.00041643,31]
[312432609,1705871474649,-500.0,0.00041643,31]
[312432610,1705871474659,-711.99,0.00041643,31]
[312432611,1705871474669,-518.27,0.00041643,31]
[312432612,1705871474717,-624.61,0.00041643,31]
[312432613,1705871474741,-922.72,0.00041643,31]
[312432614,1705871474752,-186.0,0.00041681,2]
[312432615,1705871474763,-2206.18286218,0.000417,7]
[312432616,1705871474773,-158.0,0.000417,7]
[312432617,1705871474783,-271.03,0.00041823,2]
[312432618,1705871474794,-1000.0,0.00041869,2]
[312432619,1705871474803,-150.0,0.00041899,3]
[312432620,1705871474813,-150.0,0.00041899,3]
[312432621,1705871474823,-1634.95244775,0.000419,15]
[312432622,1705871474840,-2030.05024149,0.000419,15]
[312432623,1705871474854,-500.0,0.000419,15]
[312432624,1705871474868,-492.59844327,0.000419,15]
[312432625,1705871474883,-297.54992735,0.000419,15]
[312432626,1705871474898,-453.8784,0.000419,15]
[312432627,1705871474911,-2433.79377245,0.000419,15]
[312432628,1705871474923,-2490.53561742,0.000419,15]
[312432629,1705871474942,-5563.28792307,0.000419,15]
[312432630,1705871474954,-172.72,0.000419,7]
[312432631,1705871474966,-214.6915132,0.00042,4]
[312432632,1705871474977,-241.18,0.00042,7]
[312432633,1705871474989,-200.0,0.00042,2]
[312432634,1705871475000,-150.33,0.00042,2]
[312432635,1705871475010,-150.33,0.00042,2]
[312432636,1705871475021,-150.33,0.00042,2]
[312432637,1705871475032,-150.33,0.00042,2]
[312432638,1705871475043,-150.33,0.00042,2]
[312432639,1705871475055,-150.33,0.00042,2]
[312432640,1705871475065,-150.33,0.00042,2]
[312432641,1705871475075,-150.33,0.00042,2]
[312432642,1705871475085,-150.33,0.00042,2]
[312432643,1705871475097,-150.33,0.00042,2]
[312432644,1705871475107,-150.33,0.00042,2]
[312432645,1705871475117,-150.33,0.00042,2]
[312432646,1705871475127,-150.33,0.00042,2]
[312432647,1705871475138,-500.0,0.00042012,2]
[312432648,1705871475148,-154.6659948,0.0004204,30]
[312432649,1705871475158,-387.0,0.0004209,3]
[312432650,1705871475168,-211.1,0.000421,7]
[312432651,1705871475179,-560.13721244,0.00042191,31]
[312432652,1705871475188,-500.0,0.00042191,31]
[312432653,1705871475200,-500.0,0.00042191,31]
[312432654,1705871475210,-500.0,0.00042191,31]
[312432655,1705871475221,-500.0,0.00042191,31]
[312432656,1705871475231,-500.0,0.00042191,31]
[312432657,1705871475242,-22.09928869,0.00042191,31]
[312432658,1705871475255,-477.90071131,0.00042191,31]
[312432659,1705871475265,-500.0,0.00042191,31]
[312432660,1705871475276,-500.0,0.00042191,31]
[312432661,1705871475286,-675.52,0.00042191,31]
[312432662,1705871475296,-500.0,0.00042191,31]
[312432663,1705871475306,-500.0,0.00042191,31]
[312432664,1705871475315,-500.0,0.00042191,31]
[312432665,1705871475325,-252.05,0.00042191,30]
[312432666,1705871475335,-715.06,0.00042191,31]
[312432667,1705871475345,-500.0,0.00042191,31]
[312432668,1705871475355,-500.0,0.00042191,31]
[312432669,1705871475366,-500.0,0.00042191,31]
[312432670,1705871475376,-500.0,0.00042191,31]
[312432671,1705871475386,-1167.37,0.00042191,31]
[312432672,1705871475396,-500.0,0.00042191,31]
[312432673,1705871475407,-500.0,0.00042191,31]
[312432674,1705871475417,-500.0,0.00042191,31]
[312432675,1705871475427,-500.0,0.00042191,31]
[312432676,1705871475438,-500.0,0.00042191,31]
[312432677,1705871475449,-500.0,0.00042191,31]
[312432678,1705871475458,-500.0,0.00042191,31]
[312432679,1705871475468,-500.0,0.00042191,31]
[312432680,1705871475478,-500.0,0.00042191,7]
[312432681,1705871475488,-1084.12,0.00042191,7]
[312432682,1705871475498,-623.7,0.00042191,31]
[312432683,1705871475508,-500.0,0.00042191,31]
[312432684,1705871475518,-500.0,0.00042191,31]
[312432685,1705871475528,-500.0,0.00042191,20]
[312432686,1705871475538,-500.0,0.00042191,31]
[312432687,1705871475548,-500.0,0.00042191,31]
[312432688,1705871475558,-726.74,0.00042191,31]
[312432689,1705871475568,-500.0,0.00042191,31]
[312432690,1705871475578,-500.0,0.00042191,31]
[312432691,1705871475587,-1043.82,0.00042191,31]
[312432692,1705871475597,-500.0,0.00042191,31]
[312432693,1705871475607,-500.0,0.00042191,31]
[312432694,1705871475617,-714.78,0.00042191,31]
[312432695,1705871475626,-500.0,0.00042191,31]
[312432696,1705871475636,-500.0,0.00042191,31]
[312432697,1705871475646,-500.0,0.00042191,31]
[312432698,1705871475656,-359.91615186,0.00042191,31]
[312432699,1705871475665,-556.17,0.00042191,31]
[312432700,1705871475675,-620.92,0.00042191,31]
[312432701,1705871475685,-500.0,0.00042191,31]
[312432702,1705871475694,-500.0,0.00042191,31]
[312432703,1705871475704,-500.0,0.00042191,31]
[312432704,1705871475713,-500.0,0.00042191,31]
[312432705,1705871475723,-500.0,0.00042191,31]
[312432706,1705871475733,-659.98,0.00042191,31]
[312432707,1705871475743,-710.08,0.00042191,31]
[312432708,1705871475753,-500.0,0.00042191,10]
[312432709,1705871475762,-500.0,0.00042191,31]
[312432710,1705871475771,-671.32,0.00042191,31]
[312432711,1705871475781,-410.9601637,0.00042191,31]
[312432712,1705871475790,-500.0,0.00042191,31]
[312432713,1705871475800,-500.0,0.00042191,31]
[312432714,1705871475809,-500.0,0.00042191,31]
[312432715,1705871475819,-500.0,0.00042191,31]
[312432716,1705871475828,-500.0,0.00042191,31]
[312432717,1705871475838,-500.0,0.00042191,31]
[312432718,1705871475848,-1009.65,0.00042191,31]
[312432719,1705871475858,-500.0,0.00042191,31]
[312432720,1705871475868,-639.04,0.00042191,31]
[312432721,1705871475879,-500.0,0.00042191,31]
[312432722,1705871475889,-500.0,0.00042191,31]
[312432723,1705871475898,-500.0,0.00042191,31]
[312432724,1705871475908,-500.0,0.00042191,31]
[312432725,1705871475917,-519.76,0.00042191,31]
[312432726,1705871475928,-500.0,0.00042191,31]
[312432727,1705871475938,-500.0,0.00042191,2]
[312432728,1705871475948,-702.57,0.00042191,31]
[312432729,1705871475957,-388.96723531,0.00042191,31]
[312432730,1705871475966,-500.0,0.00042191,31]
[312432731,1705871475976,-500.0,0.00042191,31]
[312432732,1705871475985,-500.0,0.00042191,31]
[312432733,1705871475995,-500.0,0.00042191,31]
[312432734,1705871476005,-500.0,0.00042191,31]
[312432735,1705871476015,-573.93,0.00042191,31]
[312432736,1705871476025,-624.0,0.00042191,31]
[312432737,1705871476035,-500.0,0.00042191,31]
[312432738,1705871476044,-500.0,0.00042191,31]
[312432739,1705871476054,-525.15782116,0.00042191,31]
[312432740,1705871476063,-868.61,0.00042191,31]
[312432741,1705871476072,-1385.45,0.00042191,31]
[312432742,1705871476082,-222.1097885,0.00042191,31]
[312432743,1705871476099,-277.8902115,0.00042191,31]
[312432744,1705871476109,-146.65424981,0.00042191,31]
[312432745,1705871476122,-352.04593963,0.00042191,31]
[312432746,1705871476134,-1.29981056,0.00042191,31]
[312432747,1705871476144,-1158.26,0.00042191,31]
[312432748,1705871476154,-500.0,0.00042191,31]
[312432749,1705871476163,-499.54995976,0.00042191,31]
[312432750,1705871476175,-0.45004024,0.00042191,31]
[312432751,1705871476186,-500.0,0.00042191,31]
[312432752,1705871476196,-500.0,0.00042191,31]
[312432753,1705871476205,-500.0,0.00042191,31]
[312432754,1705871476215,-207.110014,0.00042191,31]
[312432755,1705871476227,-938.06556108,0.00042191,31]
[312432756,1705871476495,-166.63800002,0.000229,2]
[312432757,1705871476506,-391.84940991,0.00022999,2]
[312432758,1705871476516,-703.04,0.00041095,31]
[312432759,1705871476526,-500.0,0.00041095,31]
[312432760,1705871476535,-703.04,0.00041643,31]
[312432761,1705871476545,-500.0,0.00041643,31]
[312432762,1705871476555,-67.19442492,0.00042191,31]
[312432763,1705871476564,-953.33,0.00042191,31]
[312432764,1705871476574,-500.0,0.00042191,31]
[312432765,1705871476583,-733.91,0.00042191,31]
[312432766,1705871476592,-500.0,0.00042191,31]
[312432767,1705871476601,-771.77,0.00042191,31]
[312432768,1705871476611,-500.0,0.00042191,31]
[312432769,1705871476620,-500.0,0.00042191,31]
[312432770,1705871476630,-500.0,0.00042191,31]
[312432771,1705871476640,-179.06263432,0.00042191,30]
[312432772,1705871476650,-700.36,0.00042191,31]
[312432773,1705871476659,-500.0,0.00042191,31]
[312432774,1705871476669,-500.0,0.00042191,31]
[312432775,1705871476679,-757.31,0.00042191,31]
[312432776,1705871476690,-2590.24,0.00042191,31]
[312432777,1705871476700,-1179.99,0.00042191,31]
[312432778,1705871476709,-500.0,0.00042191,31]
[312432779,1705871476719,-501.25,0.00042191,31]
[312432780,1705871476730,-543.7,0.00042191,31]
[312432781,1705871476740,-500.0,0.00042191,31]
[312432782,1705871476750,-500.0,0.00042191,60]
[312432783,1705871476759,-500.0,0.00042191,31]
[312432784,1705871476769,-1133.62,0.00042191,31]
[312432785,1705871476780,-500.0,0.00042191,31]
[312432786,1705871476790,-605.5,0.00042191,31]
[312432787,1705871476800,-711.31,0.00042191,31]
[312432788,1705871476810,-1138.04,0.00042191,31]
[312432789,1705871476822,-500.0,0.00042191,31]
[312432790,1705871476833,-500.0,0.00042191,31]
[312432791,1705871476842,-500.0,0.00042191,31]
[312432792,1705871476852,-500.0,0.00042191,31]
[312432793,1705871476861,-500.0,0.00042191,31]
[312432794,1705871476871,-1007.14,0.00042191,31]
[312432795,1705871476881,-500.0,0.00042191,31]
[312432796,1705871476891,-500.0,0.00042191,31]
[312432797,1705871476900,-500.0,0.00042191,31]
[312432798,1705871476910,-500.0,0.00042191,31]
[312432799,1705871476920,-515.59,0.00042191,31]
[312432800,1705871476931,-646.13,0.00042191,31]
[312432801,1705871476941,-500.0,0.00042191,31]
[312432802,1705871476951,-500.0,0.00042191,31]
[312432803,1705871476960,-624.52,0.00042191,31]
[312432804,1705871476970,-1107.78,0.00042191,31]
[312432805,1705871476981,-779.85,0.00042191,31]
[312432806,1705871476991,-500.0,0.00042191,31]
[312432807,1705871477001,-570.67,0.00042191,31]
[312432808,1705871477012,-1000.0,0.00042191,31]
[312432809,1705871477023,-500.0,0.00042191,31]
[312432810,1705871477034,-773.44,0.00042191,31]
[312432811,1705871477043,-500.0,0.00042191,31]
[312432812,1705871477053,-500.0,0.00042191,31]
[312432813,1705871477062,-670.23,0.00042191,31]
[312432814,1705871477072,-500.0,0.00042191,31]
[312432815,1705871477082,-500.0,0.00042191,31]
[312432816,1705871477092,-500.0,0.00042191,2]
[312432817,1705871477102,-500.0,0.00042191,31]
[312432818,1705871477113,-500.0,0.00042191,31]
[312432819,1705871477122,-500.0,0.00042191,31]